Body name,Body,Service Label,Service Code,Service division Label,Service division code,Organisational unit,Expenditure Category,Expenditure Code,CIPFA detailed expenditure type,CIPFA detailed expenditure code,Narrative,Date,Transaction number,Net Amount,Capital and revenue,Supplier Name
Gosport Borough Council,,SERVICE UNITS ADMIN COSTS,H4-6,,,,DIRECT EMPLOYEE EXPENSES,,,,,02/12/21,136109,"26,254.90",REVENUE,Portsmouth City Council
Gosport Borough Council,,SERVICE UNITS ADMIN COSTS,H4-6,,,,DIRECT EMPLOYEE EXPENSES,,,,,16/12/21,136391,"10,957.30",REVENUE,Portsmouth City Council
Gosport Borough Council,,SERVICE UNITS ADMIN COSTS,H4-6,,,,DIRECT EMPLOYEE EXPENSES,,,,,22/12/21,136785,"2,784.99",REVENUE,Civica (Uk) Limited
Gosport Borough Council,,SERVICE UNITS ADMIN COSTS,H4-6,,,,DIRECT EMPLOYEE EXPENSES,,,,,22/12/21,136784,"6,582.00",REVENUE,Civica (Uk) Limited
Gosport Borough Council,,HRA,H4-7,,,,DIRECT EMPLOYEE EXPENSES,,,,,02/12/21,135997,810.32,REVENUE,Manpower Uk Limited
Gosport Borough Council,,HRA,H4-7,,,,DIRECT EMPLOYEE EXPENSES,,,,,02/12/21,135998,"1,890.74",REVENUE,Manpower Uk Limited
Gosport Borough Council,,HRA,H4-7,,,,DIRECT EMPLOYEE EXPENSES,,,,,22/12/21,136565,"2,515.80",REVENUE,Manpower Uk Limited
Gosport Borough Council,,HRA,H4-7,,,,DIRECT EMPLOYEE EXPENSES,,,,,22/12/21,136589,"2,582.34",REVENUE,Manpower Uk Limited
Gosport Borough Council,,HRA,H4-7,,,,DIRECT EMPLOYEE EXPENSES,,,,,16/12/21,136203,"2,623.30",REVENUE,Manpower Uk Limited
Gosport Borough Council,,HOUSING SERVICES,H4-3,,,,DIRECT EMPLOYEE EXPENSES,,,,,22/12/21,136511,"1,009.21",REVENUE,Portsmouth City Council
Gosport Borough Council,,HOUSING SERVICES,H4-3,,,,DIRECT EMPLOYEE EXPENSES,,,,,16/12/21,136412,717.80,REVENUE,Portsmouth City Council
Gosport Borough Council,,SERVICE UNITS ADMIN COSTS,H4-6,,,,DIRECT EMPLOYEE EXPENSES,,,,,16/12/21,136371,"9,644.00",REVENUE,Portsmouth City Council
Gosport Borough Council,,SERVICE UNITS ADMIN COSTS,H4-6,,,,DIRECT EMPLOYEE EXPENSES,,,,,09/12/21,136196,597.80,REVENUE,Portsmouth City Council
Gosport Borough Council,,SERVICE UNITS ADMIN COSTS,H4-6,,,,DIRECT EMPLOYEE EXPENSES,,,,,16/12/21,136411,"1,022.09",REVENUE,Portsmouth City Council
Gosport Borough Council,,SERVICE UNITS ADMIN COSTS,H4-6,,,,DIRECT EMPLOYEE EXPENSES,,,,,16/12/21,135488,"1,169.96",REVENUE,Portsmouth City Council
Gosport Borough Council,,SERVICE UNITS ADMIN COSTS,H4-6,,,,DIRECT EMPLOYEE EXPENSES,,,,,16/12/21,136409,"1,169.96",REVENUE,Portsmouth City Council
Gosport Borough Council,,SERVICE UNITS ADMIN COSTS,H4-6,,,,DIRECT EMPLOYEE EXPENSES,,,,,22/12/21,136472,"3,177.47",REVENUE,Portsmouth City Council
Gosport Borough Council,,SERVICE UNITS ADMIN COSTS,H4-6,,,,DIRECT EMPLOYEE EXPENSES,,,,,02/12/21,135475,"17,822.64",REVENUE,Portsmouth City Council
Gosport Borough Council,,SERVICE UNITS ADMIN COSTS,H4-6,,,,DIRECT EMPLOYEE EXPENSES,,,,,02/12/21,135475,"6,479.93",REVENUE,Portsmouth City Council
Gosport Borough Council,,SERVICE UNITS ADMIN COSTS,H4-6,,,,DIRECT EMPLOYEE EXPENSES,,,,,02/12/21,135475,"12,842.59",REVENUE,Portsmouth City Council
Gosport Borough Council,,SERVICE UNITS ADMIN COSTS,H4-6,,,,DIRECT EMPLOYEE EXPENSES,,,,,02/12/21,135475,"8,821.16",REVENUE,Portsmouth City Council
Gosport Borough Council,,SERVICE UNITS ADMIN COSTS,H4-6,,,,INDIRECT EMPLOYEE EXPENSES,,,,,22/12/21,136550,"1,666.68",REVENUE,The Association Of Electoral Administrators
Gosport Borough Council,,SERVICE UNITS ADMIN COSTS,H4-6,,,,INDIRECT EMPLOYEE EXPENSES,,,,,22/12/21,136551,"1,666.68",REVENUE,The Association Of Electoral Administrators
Gosport Borough Council,,SERVICE UNITS ADMIN COSTS,H4-6,,,,INDIRECT EMPLOYEE EXPENSES,,,,,02/12/21,136123,550.00,REVENUE,Nec Software Solutions (Uk) Limited
Gosport Borough Council,,PLANNING SERVICES,H4-13,,,,REPAIRS AND MAINT OF BUILDINGS,,,,,02/12/21,136075,500.00,REVENUE,Gs Building Services Limited
Gosport Borough Council,,PLANNING SERVICES,H4-13,,,,REPAIRS AND MAINT OF BUILDINGS,,,,,02/12/21,136082,500.00,REVENUE,Gs Building Services Limited
Gosport Borough Council,,PLANNING SERVICES,H4-13,,,,REPAIRS AND MAINT OF BUILDINGS,,,,,02/12/21,136083,600.00,REVENUE,Gs Building Services Limited
Gosport Borough Council,,PLANNING SERVICES,H4-13,,,,REPAIRS AND MAINT OF BUILDINGS,,,,,02/12/21,136065,"1,000.00",REVENUE,Gs Building Services Limited
Gosport Borough Council,,PLANNING SERVICES,H4-13,,,,REPAIRS AND MAINT OF BUILDINGS,,,,,02/12/21,136064,"1,200.00",REVENUE,Gs Building Services Limited
Gosport Borough Council,,SERVICE UNITS ADMIN COSTS,H4-6,,,,REPAIRS AND MAINT OF BUILDINGS,,,,,09/12/21,136102,657.90,REVENUE,Guideline Lift Services Limited
Gosport Borough Council,,HRA,H4-7,,,,REPAIRS AND MAINT OF BUILDINGS,,,,,09/12/21,136197,"44,855.84",REVENUE,Novus Property Solutions Limited
Gosport Borough Council,,HRA,H4-7,,,,REPAIRS AND MAINT OF BUILDINGS,,,,,22/12/21,136524,"14,577.21",REVENUE,Kier Group Plc
Gosport Borough Council,,CULTURAL AND RELATED SERVICES,H4-11,,,,REPAIRS AND MAINT OF BUILDINGS,,,,,09/12/21,136135,"2,707.20",REVENUE,Hampshire County Council
Gosport Borough Council,,HIGHWAYS ROADS AND TRANSPORT,H4-2,,,,REPAIRS AND MAINT OF BUILDINGS,,,,,09/12/21,136135,"10,287.36",REVENUE,Hampshire County Council
Gosport Borough Council,,HOUSING SERVICES,H4-3,,,,REPAIRS AND MAINT OF BUILDINGS,,,,,09/12/21,136135,541.44,REVENUE,Hampshire County Council
Gosport Borough Council,,HRA,H4-7,,,,REPAIRS AND MAINT OF BUILDINGS,,,,,09/12/21,136135,"1,942.82",REVENUE,Hampshire County Council
Gosport Borough Council,,CULTURAL AND RELATED SERVICES,H4-11,,,,REPAIRS AND MAINT OF BUILDINGS,,,,,02/12/21,135910,"1,469.96",REVENUE,Signway Supplies  (Datchet Limited)
Gosport Borough Council,,PLANNING SERVICES,H4-13,,,,REPAIRS AND MAINT OF BUILDINGS,,,,,16/12/21,136366,"2,410.32",REVENUE,Signway Supplies  (Datchet Limited)
Gosport Borough Council,,HRA,H4-7,,,,ENERGY COSTS,,,,,22/12/21,136590,183.59,REVENUE,Portsmouth City Council
Gosport Borough Council,,CULTURAL AND RELATED SERVICES,H4-11,,,,RENTS,,,,,16/12/21,136513,900.00,REVENUE,Knight Frank Llp  (The Crown Estate)
Gosport Borough Council,,HRA,H4-7,,,,CLEANING AND DOMESTIC SUPPLIES,,,,,16/12/21,136368,"2,700.00",REVENUE,Rubbish Clearance & Waste Removal Limited
Gosport Borough Council,,HRA,H4-7,,,,CLEANING AND DOMESTIC SUPPLIES,,,,,16/12/21,136202,330.00,REVENUE,Rubbish Clearance & Waste Removal Limited
Gosport Borough Council,,HRA,H4-7,,,,CLEANING AND DOMESTIC SUPPLIES,,,,,16/12/21,136530,640.00,REVENUE,Rubbish Clearance & Waste Removal Limited
Gosport Borough Council,,HRA,H4-7,,,,CLEANING AND DOMESTIC SUPPLIES,,,,,02/12/21,136003,"2,200.00",REVENUE,Rubbish Clearance & Waste Removal Limited
Gosport Borough Council,,HRA,H4-7,,,,CLEANING AND DOMESTIC SUPPLIES,,,,,16/12/21,136195,"2,200.00",REVENUE,Rubbish Clearance & Waste Removal Limited
Gosport Borough Council,,HRA,H4-7,,,,CLEANING AND DOMESTIC SUPPLIES,,,,,16/12/21,136327,"2,200.00",REVENUE,Rubbish Clearance & Waste Removal Limited
Gosport Borough Council,,HRA,H4-7,,,,CLEANING AND DOMESTIC SUPPLIES,,,,,16/12/21,136526,"2,200.00",REVENUE,Rubbish Clearance & Waste Removal Limited
Gosport Borough Council,,HRA,H4-7,,,,CLEANING AND DOMESTIC SUPPLIES,,,,,22/12/21,136768,"2,200.00",REVENUE,Rubbish Clearance & Waste Removal Limited
Gosport Borough Council,,CULTURAL AND RELATED SERVICES,H4-11,,,,GROUNDS MAINTENANCE COSTS,,,,,16/12/21,136408,420.00,REVENUE,Cliff Phillips Landscapes
Gosport Borough Council,,HOUSING SERVICES,H4-3,,,,GROUNDS MAINTENANCE COSTS,,,,,02/12/21,136074,"2,500.00",REVENUE,Gs Building Services Limited
Gosport Borough Council,,CULTURAL AND RELATED SERVICES,H4-11,,,,GROUNDS MAINTENANCE COSTS,,,,,16/12/21,136395,630.00,REVENUE,Cliff Phillips Landscapes
Gosport Borough Council,,CULTURAL AND RELATED SERVICES,H4-11,,,,GROUNDS MAINTENANCE COSTS,,,,,16/12/21,136408,420.00,REVENUE,Cliff Phillips Landscapes
Gosport Borough Council,,CULTURAL AND RELATED SERVICES,H4-11,,,,GROUNDS MAINTENANCE COSTS,,,,,16/12/21,136407,720.00,REVENUE,Cliff Phillips Landscapes
Gosport Borough Council,,CULTURAL AND RELATED SERVICES,H4-11,,,,GROUNDS MAINTENANCE COSTS,,,,,09/12/21,136312,598.00,REVENUE,Skyfell Tree Specialists Limited
Gosport Borough Council,,CULTURAL AND RELATED SERVICES,H4-11,,,,GROUNDS MAINTENANCE COSTS,,,,,16/12/21,136401,"1,800.00",REVENUE,Cliff Phillips Landscapes
Gosport Borough Council,,CULTURAL AND RELATED SERVICES,H4-11,,,,GROUNDS MAINTENANCE COSTS,,,,,16/12/21,136394,"1,110.00",REVENUE,Cliff Phillips Landscapes
Gosport Borough Council,,HRA,H4-7,,,,GROUNDS MAINTENANCE COSTS,,,,,09/12/21,136312,239.00,REVENUE,Skyfell Tree Specialists Limited
Gosport Borough Council,,HRA,H4-7,,,,GROUNDS MAINTENANCE COSTS,,,,,16/12/21,136407,170.00,REVENUE,Cliff Phillips Landscapes
Gosport Borough Council,,HRA,H4-7,,,,GROUNDS MAINTENANCE COSTS,,,,,22/12/21,136341,"8,712.00",REVENUE,Twc Group Limited
Gosport Borough Council,,SERVICE UNITS ADMIN COSTS,H4-6,,,,GROUNDS MAINTENANCE COSTS,,,,,22/12/21,136560,"1,800.00",REVENUE,R. J. Jochimsen Contractors Limited
Gosport Borough Council,,MIRS,H4-9,,,,CAPITAL - PREMISES COSTS,,,,,22/12/21,136553,"21,176.66",CAPITAL,Ecd Architects Limited
Gosport Borough Council,,MIRS,H4-9,,,,CAPITAL - PREMISES COSTS,,,,,16/12/21,135456,830.00,CAPITAL,REDACTED
Gosport Borough Council,,MIRS,H4-9,,,,CAPITAL - PREMISES COSTS,,,,,14/12/21,136542,"1,250.00",CAPITAL,Cms Cameron Mckenna (Olswang Llp)
Gosport Borough Council,,MIRS,H4-9,,,,CAPITAL - PREMISES COSTS,,,,,22/12/21,136675,"13,651.00",CAPITAL,Pennine Control Systems Limited
Gosport Borough Council,,MIRS,H4-9,,,,CAPITAL - PREMISES COSTS,,,,,16/12/21,136475,498.24,CAPITAL,London Calling Arts Limited
Gosport Borough Council,,MIRS,H4-9,,,,CAPITAL - PREMISES COSTS,,,,,16/12/21,136353,"-1,100.00",CAPITAL,The Cds Group
Gosport Borough Council,,MIRS,H4-9,,,,CAPITAL - PREMISES COSTS,,,,,16/12/21,136497,"5,000.00",CAPITAL,The Cds Group
Gosport Borough Council,,MIRS,H4-9,,,,CAPITAL - PREMISES COSTS,,,,,22/12/21,136719,"5,850.00",CAPITAL,The Cds Group
Gosport Borough Council,,MIRS,H4-9,,,,CAPITAL - PREMISES COSTS,,,,,16/12/21,136149,"10,450.00",CAPITAL,The Cds Group
Gosport Borough Council,,MIRS,H4-9,,,,CAPITAL - PREMISES COSTS,,,,,09/12/21,136157,"2,250.00",CAPITAL,Q-Matic Ab (Uk) Limited
Gosport Borough Council,,MIRS,H4-9,,,,CAPITAL - PREMISES COSTS,,,,,09/12/21,136156,"6,660.55",CAPITAL,Q-Matic Ab (Uk) Limited
Gosport Borough Council,,MIRS,H4-9,,,,CAPITAL - PREMISES COSTS,,,,,09/12/21,136155,"2,028.00",CAPITAL,Q-Matic Ab (Uk) Limited
Gosport Borough Council,,MIRS,H4-9,,,,CAPITAL - PREMISES COSTS,,,,,09/12/21,136297,"4,000.00",CAPITAL,Donald Insall Associates Limited
Gosport Borough Council,,CULTURAL AND RELATED SERVICES,H4-11,,,,DIRECT TRANSPORT COSTS,,,,,09/12/21,136374,24.48,REVENUE,Allstar Business Solutions Limited
Gosport Borough Council,,CORPORATE AND DEMOCRATIC CORE,H4-4,,,,DIRECT TRANSPORT COSTS,,,,,09/12/21,136374,52.40,REVENUE,Allstar Business Solutions Limited
Gosport Borough Council,,SERVICE UNITS ADMIN COSTS,H4-6,,,,DIRECT TRANSPORT COSTS,,,,,09/12/21,136374,170.99,REVENUE,Allstar Business Solutions Limited
Gosport Borough Council,,SERVICE UNITS ADMIN COSTS,H4-6,,,,DIRECT TRANSPORT COSTS,,,,,09/12/21,136160,"1,207.45",REVENUE,Denham Procurement & Sourcing Solutions Ltd
Gosport Borough Council,,SERVICE UNITS ADMIN COSTS,H4-6,,,,DIRECT TRANSPORT COSTS,,,,,09/12/21,136161,"1,633.48",REVENUE,Denham Procurement & Sourcing Solutions Ltd
Gosport Borough Council,,SERVICE UNITS ADMIN COSTS,H4-6,,,,DIRECT TRANSPORT COSTS,,,,,09/12/21,136374,"1,730.82",REVENUE,Allstar Business Solutions Limited
Gosport Borough Council,,SERVICE UNITS ADMIN COSTS,H4-6,,,,DIRECT TRANSPORT COSTS,,,,,09/12/21,136374,50.01,REVENUE,Allstar Business Solutions Limited
Gosport Borough Council,,SERVICE UNITS ADMIN COSTS,H4-6,,,,CONTRACT HIRE & OPER LEASES,,,,,09/12/21,136143,494.00,REVENUE,U-Drive Limited
Gosport Borough Council,,SERVICE UNITS ADMIN COSTS,H4-6,,,,CONTRACT HIRE & OPER LEASES,,,,,08/12/21,10473,"1,085.88",REVENUE,U-Lease Limited
Gosport Borough Council,,SERVICE UNITS ADMIN COSTS,H4-6,,,,CONTRACT HIRE & OPER LEASES,,,,,16/12/21,136060,416.68,REVENUE,Blendworth Tyres Limited  (Trailer Centre)
Gosport Borough Council,,SERVICE UNITS ADMIN COSTS,H4-6,,,,CONTRACT HIRE & OPER LEASES,,,,,09/12/21,136303,500.00,REVENUE,Acacia Groundcare Equipment Rental Limited
Gosport Borough Council,,SERVICE UNITS ADMIN COSTS,H4-6,,,,CONTRACT HIRE & OPER LEASES,,,,,09/12/21,136301,693.33,REVENUE,U-Drive Limited
Gosport Borough Council,,SERVICE UNITS ADMIN COSTS,H4-6,,,,CONTRACT HIRE & OPER LEASES,,,,,16/12/21,136390,693.33,REVENUE,U-Drive Limited
Gosport Borough Council,,SERVICE UNITS ADMIN COSTS,H4-6,,,,CONTRACT HIRE & OPER LEASES,,,,,22/12/21,136667,693.33,REVENUE,U-Drive Limited
Gosport Borough Council,,SERVICE UNITS ADMIN COSTS,H4-6,,,,CONTRACT HIRE & OPER LEASES,,,,,09/12/21,136154,719.40,REVENUE,U-Drive Limited
Gosport Borough Council,,SERVICE UNITS ADMIN COSTS,H4-6,,,,CONTRACT HIRE & OPER LEASES,,,,,22/12/21,136672,"1,550.00",REVENUE,Kps Composting Services Limited
Gosport Borough Council,,CULTURAL AND RELATED SERVICES,H4-11,,,,"EQUIP, FURNITURE AND MATERIALS",,,,,09/12/21,136273,599.45,REVENUE,Hags-Smp Limited
Gosport Borough Council,,SERVICE UNITS ADMIN COSTS,H4-6,,,,"EQUIP, FURNITURE AND MATERIALS",,,,,22/12/21,136387,"3,105.75",REVENUE,Virgin Media Business
Gosport Borough Council,,SERVICE UNITS ADMIN COSTS,H4-6,,,,"EQUIP, FURNITURE AND MATERIALS",,,,,09/12/21,136128,"1,065.55",REVENUE,Xerox Finance
Gosport Borough Council,,HRA,H4-7,,,,"EQUIP, FURNITURE AND MATERIALS",,,,,20/12/21,10495,790.25,REVENUE,The Alarming Company Limited
Gosport Borough Council,,CULTURAL AND RELATED SERVICES,H4-11,,,,"EQUIP, FURNITURE AND MATERIALS",,,,,02/12/21,136106,"1,080.00",REVENUE,Gs Building Services Limited
Gosport Borough Council,,HIGHWAYS ROADS AND TRANSPORT,H4-2,,,,"EQUIP, FURNITURE AND MATERIALS",,,,,02/12/21,136085,480.00,REVENUE,Gs Building Services Limited
Gosport Borough Council,,HIGHWAYS ROADS AND TRANSPORT,H4-2,,,,"EQUIP, FURNITURE AND MATERIALS",,,,,02/12/21,136091,800.00,REVENUE,Gs Building Services Limited
Gosport Borough Council,,HRA,H4-7,,,,"EQUIP, FURNITURE AND MATERIALS",,,,,09/12/21,136187,687.96,REVENUE,Soloprotect Limited
Gosport Borough Council,,HRA,H4-7,,,,"EQUIP, FURNITURE AND MATERIALS",,,,,16/12/21,136531,687.96,REVENUE,Soloprotect Limited
Gosport Borough Council,,HRA,H4-7,,,,"EQUIP, FURNITURE AND MATERIALS",,,,,16/12/21,136202,120.00,REVENUE,Rubbish Clearance & Waste Removal Limited
Gosport Borough Council,,CENTRAL SERVICES TO THE PUBLIC,H4-5,,,,"EQUIP, FURNITURE AND MATERIALS",,,,,09/12/21,136162,458.00,REVENUE,Ace Office Environment Limited
Gosport Borough Council,,CENTRAL SERVICES TO THE PUBLIC,H4-5,,,,"EQUIP, FURNITURE AND MATERIALS",,,,,16/12/21,136482,695.00,REVENUE,Ace Office Environment Limited
Gosport Borough Council,,CENTRAL SERVICES TO THE PUBLIC,H4-5,,,,"EQUIP, FURNITURE AND MATERIALS",,,,,16/12/21,136491,148.18,REVENUE,Aadvark Supplies Limited
Gosport Borough Council,,HRA,H4-7,,,,"EQUIP, FURNITURE AND MATERIALS",,,,,09/12/21,136153,59.21,REVENUE,Aadvark Supplies Limited
Gosport Borough Council,,HRA,H4-7,,,,"EQUIP, FURNITURE AND MATERIALS",,,,,22/12/21,136703,107.92,REVENUE,Aadvark Supplies Limited
Gosport Borough Council,,HRA,H4-7,,,,"EQUIP, FURNITURE AND MATERIALS",,,,,09/12/21,136284,170.67,REVENUE,Aadvark Supplies Limited
Gosport Borough Council,,SERVICE UNITS ADMIN COSTS,H4-6,,,,"EQUIP, FURNITURE AND MATERIALS",,,,,02/12/21,135995,209.80,REVENUE,Nomix Enviro Limited
Gosport Borough Council,,SERVICE UNITS ADMIN COSTS,H4-6,,,,"EQUIP, FURNITURE AND MATERIALS",,,,,16/12/21,136502,453.40,REVENUE,Fleet Line Markers Ltd
Gosport Borough Council,,SERVICE UNITS ADMIN COSTS,H4-6,,,,"EQUIP, FURNITURE AND MATERIALS",,,,,02/12/21,136072,208.90,REVENUE,Spaldings Limited
Gosport Borough Council,,SERVICE UNITS ADMIN COSTS,H4-6,,,,"EQUIP, FURNITURE AND MATERIALS",,,,,02/12/21,136124,"3,847.30",REVENUE,Origin Uk Operations Limited  (Rigby Taylor)
Gosport Borough Council,,SERVICE UNITS ADMIN COSTS,H4-6,,,,"EQUIP, FURNITURE AND MATERIALS",,,,,16/12/21,136361,267.23,REVENUE,Antalis Limited
Gosport Borough Council,,SERVICE UNITS ADMIN COSTS,H4-6,,,,"CLOTHES, UNIFORM AND LAUNDRY",,,,,02/12/21,136120,358.20,REVENUE,Tower Supplies (The Tower Trust)
Gosport Borough Council,,SERVICE UNITS ADMIN COSTS,H4-6,,,,"PRINTING, STAT & OFFICE EXP",,,,,22/12/21,136724,"1,596.00",REVENUE,Lexisnexis  (Reed Elsevier Uk) Limited
Gosport Borough Council,,CENTRAL SERVICES TO THE PUBLIC,H4-5,,,,SERVICES,,,,,16/12/21,136514,"4,203.41",REVENUE,Electoral Reform Services Limited
Gosport Borough Council,,CULTURAL AND RELATED SERVICES,H4-11,,,,SERVICES,,,,,16/12/21,136477,"2,067.70",REVENUE,The Play Inspection Company Limited
Gosport Borough Council,,SERVICE UNITS ADMIN COSTS,H4-6,,,,SERVICES,,,,,22/12/21,136552,"15,675.00",REVENUE,Cipfa Business Limited
Gosport Borough Council,,SERVICE UNITS ADMIN COSTS,H4-6,,,,SERVICES,,,,,09/12/21,135925,-669.67,REVENUE,Hampshire County Council
Gosport Borough Council,,SERVICE UNITS ADMIN COSTS,H4-6,,,,SERVICES,,,,,16/12/21,136520,0.00,REVENUE,Clarke Willmott Llp
Gosport Borough Council,,HIGHWAYS ROADS AND TRANSPORT,H4-2,,,,SERVICES,,,,,22/12/21,136326,0.00,REVENUE,Marston (Holdings) Limited
Gosport Borough Council,,CENTRAL SERVICES TO THE PUBLIC,H4-5,,,,SERVICES,,,,,22/12/21,136569,0.00,REVENUE,Bristow & Sutor Management Services Limited
Gosport Borough Council,,CENTRAL SERVICES TO THE PUBLIC,H4-5,,,,SERVICES,,,,,09/12/21,136199,0.00,REVENUE,Marston (Holdings) Limited
Gosport Borough Council,,CENTRAL SERVICES TO THE PUBLIC,H4-5,,,,SERVICES,,,,,09/12/21,136200,0.00,REVENUE,Marston (Holdings) Limited
Gosport Borough Council,,CENTRAL SERVICES TO THE PUBLIC,H4-5,,,,SERVICES,,,,,02/12/21,135271,0.00,REVENUE,Marston (Holdings) Limited
Gosport Borough Council,,CENTRAL SERVICES TO THE PUBLIC,H4-5,,,,SERVICES,,,,,02/12/21,135272,0.00,REVENUE,Marston (Holdings) Limited
Gosport Borough Council,,CENTRAL SERVICES TO THE PUBLIC,H4-5,,,,SERVICES,,,,,02/12/21,135274,0.00,REVENUE,Marston (Holdings) Limited
Gosport Borough Council,,HRA,H4-7,,,,SERVICES,,,,,02/12/21,136118,"1,466.00",REVENUE,Valentine Carpet Cleaning Services
Gosport Borough Council,,HIGHWAYS ROADS AND TRANSPORT,H4-2,,,,SERVICES,,,,,16/12/21,136516,670.37,REVENUE,Pivitol  (Rms Group Service)
Gosport Borough Council,,SERVICE UNITS ADMIN COSTS,H4-6,,,,SERVICES,,,,,16/12/21,136516,125.60,REVENUE,Pivitol  (Rms Group Service)
Gosport Borough Council,,HRA,H4-7,,,,SERVICES,,,,,16/12/21,136534,776.65,REVENUE,Mplc Limited
Gosport Borough Council,,HRA,H4-7,,,,SERVICES,,,,,16/12/21,136534,465.96,REVENUE,Mplc Limited
Gosport Borough Council,,SERVICE UNITS ADMIN COSTS,H4-6,,,,SERVICES,,,,,13/12/21,10485,"5,419.76",REVENUE,Capita Business Services Limited
Gosport Borough Council,,HRA,H4-7,,,,SERVICES,,,,,09/12/21,136204,"1,787.60",REVENUE,Ppp Taking Care Limited  (Axa Uk Plc)
Gosport Borough Council,,SERVICE UNITS ADMIN COSTS,H4-6,,,,COMMUNICATIONS AND COMPUTING,,,,,02/12/21,136062,426.00,REVENUE,Vohkus Limited
Gosport Borough Council,,SERVICE UNITS ADMIN COSTS,H4-6,,,,COMMUNICATIONS AND COMPUTING,,,,,22/12/21,136713,825.01,REVENUE,Nec Software Solutions (Uk) Limited
Gosport Borough Council,,HRA,H4-7,,,,EXPENSES,,,,,22/12/21,136780,"2,000.00",REVENUE,REDACTED
Gosport Borough Council,,HOUSING SERVICES,H4-3,,,,GRANTS AND SUBSCRIPTIONS,,,,,21/12/21,133299,-999.96,REVENUE,REDACTED
Gosport Borough Council,,HOUSING SERVICES,H4-3,,,,GRANTS AND SUBSCRIPTIONS,,,,,21/12/21,133219,520.13,REVENUE,Mason Harris Limited
Gosport Borough Council,,HOUSING SERVICES,H4-3,,,,GRANTS AND SUBSCRIPTIONS,,,,,21/12/21,133259,525.00,REVENUE,Riverfield Estates Limited
Gosport Borough Council,,HOUSING SERVICES,H4-3,,,,GRANTS AND SUBSCRIPTIONS,,,,,21/12/21,133252,535.00,REVENUE,REDACTED
Gosport Borough Council,,HOUSING SERVICES,H4-3,,,,GRANTS AND SUBSCRIPTIONS,,,,,21/12/21,133277,535.00,REVENUE,REDACTED
Gosport Borough Council,,HOUSING SERVICES,H4-3,,,,GRANTS AND SUBSCRIPTIONS,,,,,21/12/21,133280,535.00,REVENUE,REDACTED
Gosport Borough Council,,HOUSING SERVICES,H4-3,,,,GRANTS AND SUBSCRIPTIONS,,,,,21/12/21,133291,535.00,REVENUE,Msg Market Research Recrutiment Limited
Gosport Borough Council,,HOUSING SERVICES,H4-3,,,,GRANTS AND SUBSCRIPTIONS,,,,,21/12/21,133272,545.00,REVENUE,REDACTED
Gosport Borough Council,,HOUSING SERVICES,H4-3,,,,GRANTS AND SUBSCRIPTIONS,,,,,21/12/21,133223,624.99,REVENUE,Aspire (Elite Property Management)
Gosport Borough Council,,HOUSING SERVICES,H4-3,,,,GRANTS AND SUBSCRIPTIONS,,,,,21/12/21,133224,624.99,REVENUE,Aspire (Elite Property Management)
Gosport Borough Council,,HOUSING SERVICES,H4-3,,,,GRANTS AND SUBSCRIPTIONS,,,,,21/12/21,133226,624.99,REVENUE,REDACTED
Gosport Borough Council,,HOUSING SERVICES,H4-3,,,,GRANTS AND SUBSCRIPTIONS,,,,,21/12/21,133232,624.99,REVENUE,REDACTED
Gosport Borough Council,,HOUSING SERVICES,H4-3,,,,GRANTS AND SUBSCRIPTIONS,,,,,21/12/21,133236,624.99,REVENUE,REDACTED
Gosport Borough Council,,HOUSING SERVICES,H4-3,,,,GRANTS AND SUBSCRIPTIONS,,,,,21/12/21,133238,624.99,REVENUE,REDACTED
Gosport Borough Council,,HOUSING SERVICES,H4-3,,,,GRANTS AND SUBSCRIPTIONS,,,,,21/12/21,133243,624.99,REVENUE,REDACTED
Gosport Borough Council,,HOUSING SERVICES,H4-3,,,,GRANTS AND SUBSCRIPTIONS,,,,,21/12/21,133244,624.99,REVENUE,REDACTED
Gosport Borough Council,,HOUSING SERVICES,H4-3,,,,GRANTS AND SUBSCRIPTIONS,,,,,21/12/21,133253,624.99,REVENUE,REDACTED
Gosport Borough Council,,HOUSING SERVICES,H4-3,,,,GRANTS AND SUBSCRIPTIONS,,,,,21/12/21,133260,624.99,REVENUE,REDACTED
Gosport Borough Council,,HOUSING SERVICES,H4-3,,,,GRANTS AND SUBSCRIPTIONS,,,,,21/12/21,133264,624.99,REVENUE,REDACTED
Gosport Borough Council,,HOUSING SERVICES,H4-3,,,,GRANTS AND SUBSCRIPTIONS,,,,,21/12/21,133265,624.99,REVENUE,REDACTED
Gosport Borough Council,,HOUSING SERVICES,H4-3,,,,GRANTS AND SUBSCRIPTIONS,,,,,21/12/21,133270,624.99,REVENUE,REDACTED
Gosport Borough Council,,HOUSING SERVICES,H4-3,,,,GRANTS AND SUBSCRIPTIONS,,,,,21/12/21,133282,624.99,REVENUE,REDACTED
Gosport Borough Council,,HOUSING SERVICES,H4-3,,,,GRANTS AND SUBSCRIPTIONS,,,,,21/12/21,133285,624.99,REVENUE,REDACTED
Gosport Borough Council,,HOUSING SERVICES,H4-3,,,,GRANTS AND SUBSCRIPTIONS,,,,,21/12/21,133290,624.99,REVENUE,REDACTED
Gosport Borough Council,,HOUSING SERVICES,H4-3,,,,GRANTS AND SUBSCRIPTIONS,,,,,21/12/21,133207,644.32,REVENUE,REDACTED
Gosport Borough Council,,HOUSING SERVICES,H4-3,,,,GRANTS AND SUBSCRIPTIONS,,,,,21/12/21,133209,644.32,REVENUE,REDACTED
Gosport Borough Council,,HOUSING SERVICES,H4-3,,,,GRANTS AND SUBSCRIPTIONS,,,,,21/12/21,133211,644.32,REVENUE,REDACTED
Gosport Borough Council,,HOUSING SERVICES,H4-3,,,,GRANTS AND SUBSCRIPTIONS,,,,,21/12/21,133213,644.32,REVENUE,Mason Harris Limited
Gosport Borough Council,,HOUSING SERVICES,H4-3,,,,GRANTS AND SUBSCRIPTIONS,,,,,21/12/21,133215,644.32,REVENUE,Mason Harris Limited
Gosport Borough Council,,HOUSING SERVICES,H4-3,,,,GRANTS AND SUBSCRIPTIONS,,,,,21/12/21,133216,644.32,REVENUE,Mason Harris Limited
Gosport Borough Council,,HOUSING SERVICES,H4-3,,,,GRANTS AND SUBSCRIPTIONS,,,,,21/12/21,133218,644.32,REVENUE,Mason Harris Limited
Gosport Borough Council,,HOUSING SERVICES,H4-3,,,,GRANTS AND SUBSCRIPTIONS,,,,,21/12/21,133233,644.32,REVENUE,REDACTED
Gosport Borough Council,,HOUSING SERVICES,H4-3,,,,GRANTS AND SUBSCRIPTIONS,,,,,21/12/21,133234,644.32,REVENUE,REDACTED
Gosport Borough Council,,HOUSING SERVICES,H4-3,,,,GRANTS AND SUBSCRIPTIONS,,,,,21/12/21,133241,644.32,REVENUE,REDACTED
Gosport Borough Council,,HOUSING SERVICES,H4-3,,,,GRANTS AND SUBSCRIPTIONS,,,,,21/12/21,133255,644.32,REVENUE,REDACTED
Gosport Borough Council,,HOUSING SERVICES,H4-3,,,,GRANTS AND SUBSCRIPTIONS,,,,,21/12/21,133273,644.32,REVENUE,REDACTED
Gosport Borough Council,,HOUSING SERVICES,H4-3,,,,GRANTS AND SUBSCRIPTIONS,,,,,21/12/21,133274,644.32,REVENUE,REDACTED
Gosport Borough Council,,HOUSING SERVICES,H4-3,,,,GRANTS AND SUBSCRIPTIONS,,,,,21/12/21,133281,644.32,REVENUE,REDACTED
Gosport Borough Council,,HOUSING SERVICES,H4-3,,,,GRANTS AND SUBSCRIPTIONS,,,,,21/12/21,133206,650.00,REVENUE,REDACTED
Gosport Borough Council,,HOUSING SERVICES,H4-3,,,,GRANTS AND SUBSCRIPTIONS,,,,,21/12/21,133249,650.00,REVENUE,REDACTED
Gosport Borough Council,,HOUSING SERVICES,H4-3,,,,GRANTS AND SUBSCRIPTIONS,,,,,21/12/21,133257,650.00,REVENUE,REDACTED
Gosport Borough Council,,HOUSING SERVICES,H4-3,,,,GRANTS AND SUBSCRIPTIONS,,,,,21/12/21,133267,650.00,REVENUE,REDACTED
Gosport Borough Council,,HOUSING SERVICES,H4-3,,,,GRANTS AND SUBSCRIPTIONS,,,,,21/12/21,133268,650.00,REVENUE,REDACTED
Gosport Borough Council,,HOUSING SERVICES,H4-3,,,,GRANTS AND SUBSCRIPTIONS,,,,,21/12/21,133275,650.00,REVENUE,REDACTED
Gosport Borough Council,,HOUSING SERVICES,H4-3,,,,GRANTS AND SUBSCRIPTIONS,,,,,21/12/21,133294,660.00,REVENUE,REDACTED
Gosport Borough Council,,HOUSING SERVICES,H4-3,,,,GRANTS AND SUBSCRIPTIONS,,,,,21/12/21,133256,668.52,REVENUE,REDACTED
Gosport Borough Council,,HOUSING SERVICES,H4-3,,,,GRANTS AND SUBSCRIPTIONS,,,,,21/12/21,133220,670.00,REVENUE,REDACTED
Gosport Borough Council,,HOUSING SERVICES,H4-3,,,,GRANTS AND SUBSCRIPTIONS,,,,,21/12/21,133246,670.00,REVENUE,REDACTED
Gosport Borough Council,,HOUSING SERVICES,H4-3,,,,GRANTS AND SUBSCRIPTIONS,,,,,21/12/21,133254,670.00,REVENUE,REDACTED
Gosport Borough Council,,HOUSING SERVICES,H4-3,,,,GRANTS AND SUBSCRIPTIONS,,,,,21/12/21,133258,670.00,REVENUE,REDACTED
Gosport Borough Council,,HOUSING SERVICES,H4-3,,,,GRANTS AND SUBSCRIPTIONS,,,,,21/12/21,133210,675.00,REVENUE,REDACTED
Gosport Borough Council,,HOUSING SERVICES,H4-3,,,,GRANTS AND SUBSCRIPTIONS,,,,,21/12/21,133298,675.00,REVENUE,REDACTED
Gosport Borough Council,,HOUSING SERVICES,H4-3,,,,GRANTS AND SUBSCRIPTIONS,,,,,21/12/21,133230,695.00,REVENUE,REDACTED
Gosport Borough Council,,HOUSING SERVICES,H4-3,,,,GRANTS AND SUBSCRIPTIONS,,,,,21/12/21,133279,700.00,REVENUE,REDACTED
Gosport Borough Council,,HOUSING SERVICES,H4-3,,,,GRANTS AND SUBSCRIPTIONS,,,,,21/12/21,133227,712.51,REVENUE,REDACTED
Gosport Borough Council,,HOUSING SERVICES,H4-3,,,,GRANTS AND SUBSCRIPTIONS,,,,,21/12/21,133262,714.23,REVENUE,REDACTED
Gosport Borough Council,,HOUSING SERVICES,H4-3,,,,GRANTS AND SUBSCRIPTIONS,,,,,21/12/21,133212,750.00,REVENUE,REDACTED
Gosport Borough Council,,HOUSING SERVICES,H4-3,,,,GRANTS AND SUBSCRIPTIONS,,,,,21/12/21,133222,750.00,REVENUE,REDACTED
Gosport Borough Council,,HOUSING SERVICES,H4-3,,,,GRANTS AND SUBSCRIPTIONS,,,,,21/12/21,133231,750.00,REVENUE,REDACTED
Gosport Borough Council,,HOUSING SERVICES,H4-3,,,,GRANTS AND SUBSCRIPTIONS,,,,,21/12/21,133240,750.00,REVENUE,Salvation Army Housing Association
Gosport Borough Council,,HOUSING SERVICES,H4-3,,,,GRANTS AND SUBSCRIPTIONS,,,,,21/12/21,133247,750.00,REVENUE,REDACTED
Gosport Borough Council,,HOUSING SERVICES,H4-3,,,,GRANTS AND SUBSCRIPTIONS,,,,,21/12/21,133250,750.00,REVENUE,REDACTED
Gosport Borough Council,,HOUSING SERVICES,H4-3,,,,GRANTS AND SUBSCRIPTIONS,,,,,21/12/21,133251,750.00,REVENUE,REDACTED
Gosport Borough Council,,HOUSING SERVICES,H4-3,,,,GRANTS AND SUBSCRIPTIONS,,,,,21/12/21,133288,750.00,REVENUE,REDACTED
Gosport Borough Council,,HOUSING SERVICES,H4-3,,,,GRANTS AND SUBSCRIPTIONS,,,,,21/12/21,133292,750.00,REVENUE,REDACTED
Gosport Borough Council,,HOUSING SERVICES,H4-3,,,,GRANTS AND SUBSCRIPTIONS,,,,,21/12/21,133245,770.00,REVENUE,REDACTED
Gosport Borough Council,,HOUSING SERVICES,H4-3,,,,GRANTS AND SUBSCRIPTIONS,,,,,21/12/21,133214,770.38,REVENUE,Mason Harris Limited
Gosport Borough Council,,HOUSING SERVICES,H4-3,,,,GRANTS AND SUBSCRIPTIONS,,,,,21/12/21,133269,770.38,REVENUE,REDACTED
Gosport Borough Council,,HOUSING SERVICES,H4-3,,,,GRANTS AND SUBSCRIPTIONS,,,,,21/12/21,133296,770.38,REVENUE,Orchard Lettings
Gosport Borough Council,,HOUSING SERVICES,H4-3,,,,GRANTS AND SUBSCRIPTIONS,,,,,21/12/21,133228,800.00,REVENUE,REDACTED
Gosport Borough Council,,HOUSING SERVICES,H4-3,,,,GRANTS AND SUBSCRIPTIONS,,,,,21/12/21,133229,800.00,REVENUE,REDACTED
Gosport Borough Council,,HOUSING SERVICES,H4-3,,,,GRANTS AND SUBSCRIPTIONS,,,,,21/12/21,133239,800.00,REVENUE,REDACTED
Gosport Borough Council,,HOUSING SERVICES,H4-3,,,,GRANTS AND SUBSCRIPTIONS,,,,,21/12/21,133248,800.00,REVENUE,REDACTED
Gosport Borough Council,,HOUSING SERVICES,H4-3,,,,GRANTS AND SUBSCRIPTIONS,,,,,21/12/21,133261,800.00,REVENUE,REDACTED
Gosport Borough Council,,HOUSING SERVICES,H4-3,,,,GRANTS AND SUBSCRIPTIONS,,,,,21/12/21,133276,800.00,REVENUE,REDACTED
Gosport Borough Council,,HOUSING SERVICES,H4-3,,,,GRANTS AND SUBSCRIPTIONS,,,,,21/12/21,133278,800.00,REVENUE,REDACTED
Gosport Borough Council,,HOUSING SERVICES,H4-3,,,,GRANTS AND SUBSCRIPTIONS,,,,,21/12/21,133286,800.00,REVENUE,REDACTED
Gosport Borough Council,,HOUSING SERVICES,H4-3,,,,GRANTS AND SUBSCRIPTIONS,,,,,21/12/21,133289,800.00,REVENUE,REDACTED
Gosport Borough Council,,HOUSING SERVICES,H4-3,,,,GRANTS AND SUBSCRIPTIONS,,,,,21/12/21,133283,830.00,REVENUE,REDACTED
Gosport Borough Council,,HOUSING SERVICES,H4-3,,,,GRANTS AND SUBSCRIPTIONS,,,,,21/12/21,133208,840.00,REVENUE,REDACTED
Gosport Borough Council,,HOUSING SERVICES,H4-3,,,,GRANTS AND SUBSCRIPTIONS,,,,,21/12/21,133221,894.73,REVENUE,REDACTED
Gosport Borough Council,,HOUSING SERVICES,H4-3,,,,GRANTS AND SUBSCRIPTIONS,,,,,21/12/21,133284,900.00,REVENUE,REDACTED
Gosport Borough Council,,HOUSING SERVICES,H4-3,,,,GRANTS AND SUBSCRIPTIONS,,,,,21/12/21,133225,920.41,REVENUE,Fine Cars (Lee-On-Solent) Limited
Gosport Borough Council,,HOUSING SERVICES,H4-3,,,,GRANTS AND SUBSCRIPTIONS,,,,,21/12/21,133263,950.00,REVENUE,REDACTED
Gosport Borough Council,,HOUSING SERVICES,H4-3,,,,GRANTS AND SUBSCRIPTIONS,,,,,21/12/21,133217,"1,000.00",REVENUE,Mason Harris Limited
Gosport Borough Council,,HOUSING SERVICES,H4-3,,,,GRANTS AND SUBSCRIPTIONS,,,,,21/12/21,133287,"1,000.00",REVENUE,REDACTED
Gosport Borough Council,,HOUSING SERVICES,H4-3,,,,GRANTS AND SUBSCRIPTIONS,,,,,21/12/21,133295,"1,000.00",REVENUE,REDACTED
Gosport Borough Council,,HOUSING SERVICES,H4-3,,,,GRANTS AND SUBSCRIPTIONS,,,,,21/12/21,133300,"1,070.00",REVENUE,REDACTED
Gosport Borough Council,,HOUSING SERVICES,H4-3,,,,GRANTS AND SUBSCRIPTIONS,,,,,02/12/21,135935,490.00,REVENUE,Stepping Stone Accomodation Limited
Gosport Borough Council,,HOUSING SERVICES,H4-3,,,,GRANTS AND SUBSCRIPTIONS,,,,,16/12/21,136193,490.00,REVENUE,Stepping Stone Accomodation Limited
Gosport Borough Council,,HOUSING SERVICES,H4-3,,,,GRANTS AND SUBSCRIPTIONS,,,,,16/12/21,136344,490.00,REVENUE,Stepping Stone Accomodation Limited
Gosport Borough Council,,HOUSING SERVICES,H4-3,,,,GRANTS AND SUBSCRIPTIONS,,,,,22/12/21,136566,490.00,REVENUE,Stepping Stone Accomodation Limited
Gosport Borough Council,,HOUSING SERVICES,H4-3,,,,GRANTS AND SUBSCRIPTIONS,,,,,22/12/21,136586,490.00,REVENUE,Stepping Stone Accomodation Limited
Gosport Borough Council,,HOUSING SERVICES,H4-3,,,,GRANTS AND SUBSCRIPTIONS,,,,,02/12/21,135920,560.00,REVENUE,A Gosport Inn
Gosport Borough Council,,HOUSING SERVICES,H4-3,,,,GRANTS AND SUBSCRIPTIONS,,,,,02/12/21,135937,560.00,REVENUE,Portsmouth Inns
Gosport Borough Council,,HOUSING SERVICES,H4-3,,,,GRANTS AND SUBSCRIPTIONS,,,,,02/12/21,135938,560.00,REVENUE,Portsmouth Inns
Gosport Borough Council,,HOUSING SERVICES,H4-3,,,,GRANTS AND SUBSCRIPTIONS,,,,,02/12/21,135940,560.00,REVENUE,Portsmouth Inns
Gosport Borough Council,,HOUSING SERVICES,H4-3,,,,GRANTS AND SUBSCRIPTIONS,,,,,02/12/21,135941,560.00,REVENUE,Portsmouth Inns
Gosport Borough Council,,HOUSING SERVICES,H4-3,,,,GRANTS AND SUBSCRIPTIONS,,,,,16/12/21,136168,560.00,REVENUE,A Gosport Inn
Gosport Borough Council,,HOUSING SERVICES,H4-3,,,,GRANTS AND SUBSCRIPTIONS,,,,,16/12/21,136183,560.00,REVENUE,Portsmouth Inns
Gosport Borough Council,,HOUSING SERVICES,H4-3,,,,GRANTS AND SUBSCRIPTIONS,,,,,16/12/21,136184,560.00,REVENUE,Portsmouth Inns
Gosport Borough Council,,HOUSING SERVICES,H4-3,,,,GRANTS AND SUBSCRIPTIONS,,,,,16/12/21,136335,560.00,REVENUE,A Gosport Inn
Gosport Borough Council,,HOUSING SERVICES,H4-3,,,,GRANTS AND SUBSCRIPTIONS,,,,,22/12/21,136578,560.00,REVENUE,A Gosport Inn
Gosport Borough Council,,HOUSING SERVICES,H4-3,,,,GRANTS AND SUBSCRIPTIONS,,,,,02/12/21,135915,630.00,REVENUE,A Gosport Inn
Gosport Borough Council,,HOUSING SERVICES,H4-3,,,,GRANTS AND SUBSCRIPTIONS,,,,,02/12/21,135919,630.00,REVENUE,A Gosport Inn
Gosport Borough Council,,HOUSING SERVICES,H4-3,,,,GRANTS AND SUBSCRIPTIONS,,,,,16/12/21,136166,630.00,REVENUE,A Gosport Inn
Gosport Borough Council,,HOUSING SERVICES,H4-3,,,,GRANTS AND SUBSCRIPTIONS,,,,,16/12/21,136169,630.00,REVENUE,A Gosport Inn
Gosport Borough Council,,HOUSING SERVICES,H4-3,,,,GRANTS AND SUBSCRIPTIONS,,,,,16/12/21,136333,630.00,REVENUE,A Gosport Inn
Gosport Borough Council,,HOUSING SERVICES,H4-3,,,,GRANTS AND SUBSCRIPTIONS,,,,,16/12/21,136334,630.00,REVENUE,A Gosport Inn
Gosport Borough Council,,HOUSING SERVICES,H4-3,,,,GRANTS AND SUBSCRIPTIONS,,,,,22/12/21,136562,630.00,REVENUE,Portsmouth Inns
Gosport Borough Council,,HOUSING SERVICES,H4-3,,,,GRANTS AND SUBSCRIPTIONS,,,,,22/12/21,136573,630.00,REVENUE,A Gosport Inn
Gosport Borough Council,,HOUSING SERVICES,H4-3,,,,GRANTS AND SUBSCRIPTIONS,,,,,22/12/21,136580,630.00,REVENUE,A Gosport Inn
Gosport Borough Council,,HOUSING SERVICES,H4-3,,,,GRANTS AND SUBSCRIPTIONS,,,,,02/12/21,135916,665.00,REVENUE,A Gosport Inn
Gosport Borough Council,,HOUSING SERVICES,H4-3,,,,GRANTS AND SUBSCRIPTIONS,,,,,16/12/21,136167,665.00,REVENUE,A Gosport Inn
Gosport Borough Council,,HOUSING SERVICES,H4-3,,,,GRANTS AND SUBSCRIPTIONS,,,,,16/12/21,136332,665.00,REVENUE,A Gosport Inn
Gosport Borough Council,,HOUSING SERVICES,H4-3,,,,GRANTS AND SUBSCRIPTIONS,,,,,22/12/21,136577,665.00,REVENUE,A Gosport Inn
Gosport Borough Council,,HOUSING SERVICES,H4-3,,,,GRANTS AND SUBSCRIPTIONS,,,,,16/12/21,136172,700.00,REVENUE,A Gosport Inn
Gosport Borough Council,,HOUSING SERVICES,H4-3,,,,GRANTS AND SUBSCRIPTIONS,,,,,16/12/21,136330,700.00,REVENUE,A Gosport Inn
Gosport Borough Council,,HOUSING SERVICES,H4-3,,,,GRANTS AND SUBSCRIPTIONS,,,,,22/12/21,136571,700.00,REVENUE,A Gosport Inn
Gosport Borough Council,,HOUSING SERVICES,H4-3,,,,GRANTS AND SUBSCRIPTIONS,,,,,22/12/21,136579,700.00,REVENUE,A Gosport Inn
Gosport Borough Council,,HOUSING SERVICES,H4-3,,,,GRANTS AND SUBSCRIPTIONS,,,,,02/12/21,135918,770.00,REVENUE,A Gosport Inn
Gosport Borough Council,,HOUSING SERVICES,H4-3,,,,GRANTS AND SUBSCRIPTIONS,,,,,16/12/21,136171,770.00,REVENUE,A Gosport Inn
Gosport Borough Council,,HOUSING SERVICES,H4-3,,,,GRANTS AND SUBSCRIPTIONS,,,,,16/12/21,136176,770.00,REVENUE,A Gosport Inn
Gosport Borough Council,,HOUSING SERVICES,H4-3,,,,GRANTS AND SUBSCRIPTIONS,,,,,16/12/21,136328,770.00,REVENUE,A Gosport Inn
Gosport Borough Council,,HOUSING SERVICES,H4-3,,,,GRANTS AND SUBSCRIPTIONS,,,,,16/12/21,136331,770.00,REVENUE,A Gosport Inn
Gosport Borough Council,,HOUSING SERVICES,H4-3,,,,GRANTS AND SUBSCRIPTIONS,,,,,22/12/21,136575,770.00,REVENUE,A Gosport Inn
Gosport Borough Council,,HOUSING SERVICES,H4-3,,,,GRANTS AND SUBSCRIPTIONS,,,,,22/12/21,136576,770.00,REVENUE,A Gosport Inn
Gosport Borough Council,,HOUSING SERVICES,H4-3,,,,GRANTS AND SUBSCRIPTIONS,,,,,02/12/21,135917,840.00,REVENUE,A Gosport Inn
Gosport Borough Council,,HOUSING SERVICES,H4-3,,,,GRANTS AND SUBSCRIPTIONS,,,,,02/12/21,135936,840.00,REVENUE,Portsmouth Inns
Gosport Borough Council,,HOUSING SERVICES,H4-3,,,,GRANTS AND SUBSCRIPTIONS,,,,,02/12/21,135942,840.00,REVENUE,Portsmouth Inns
Gosport Borough Council,,HOUSING SERVICES,H4-3,,,,GRANTS AND SUBSCRIPTIONS,,,,,16/12/21,136173,840.00,REVENUE,A Gosport Inn
Gosport Borough Council,,HOUSING SERVICES,H4-3,,,,GRANTS AND SUBSCRIPTIONS,,,,,16/12/21,136185,840.00,REVENUE,Portsmouth Inns
Gosport Borough Council,,HOUSING SERVICES,H4-3,,,,GRANTS AND SUBSCRIPTIONS,,,,,16/12/21,136329,840.00,REVENUE,A Gosport Inn
Gosport Borough Council,,HOUSING SERVICES,H4-3,,,,GRANTS AND SUBSCRIPTIONS,,,,,22/12/21,136561,840.00,REVENUE,Portsmouth Inns
Gosport Borough Council,,HOUSING SERVICES,H4-3,,,,GRANTS AND SUBSCRIPTIONS,,,,,22/12/21,136574,840.00,REVENUE,A Gosport Inn
Gosport Borough Council,,PLANNING SERVICES,H4-13,,,,GRANTS AND SUBSCRIPTIONS,,,,,02/12/21,135987,"2,000.00",REVENUE,Beauhurst (Business Funding Research Ltd)
Gosport Borough Council,,CORPORATE AND DEMOCRATIC CORE,H4-4,,,,GRANTS AND SUBSCRIPTIONS,,,,,09/12/21,136296,"2,494.00",REVENUE,Hampshire County Council
Gosport Borough Council,,SERVICE UNITS ADMIN COSTS,H4-6,,,,GRANTS AND SUBSCRIPTIONS,,,,,09/12/21,136373,"2,944.00",REVENUE,Housing Partners Limited
Gosport Borough Council,,SERVICE UNITS ADMIN COSTS,H4-6,,,,GRANTS AND SUBSCRIPTIONS,,,,,09/12/21,136271,"5,887.48",REVENUE,Housing Partners Limited
Gosport Borough Council,,SERVICE UNITS ADMIN COSTS,H4-6,,,,GRANTS AND SUBSCRIPTIONS,,,,,09/12/21,136346,761.00,REVENUE,Lnrs Data Services Limited
Gosport Borough Council,,PLANNING SERVICES,H4-13,,,,GRANTS AND SUBSCRIPTIONS,,,,,22/12/21,136740,"1,600.00",REVENUE,The Waterside
Gosport Borough Council,,HOUSING SERVICES,H4-3,,,,GRANTS AND SUBSCRIPTIONS,,,,,22/12/21,136720,925.00,REVENUE,Mason Harris Limited
Gosport Borough Council,,HOUSING SERVICES,H4-3,,,,GRANTS AND SUBSCRIPTIONS,,,,,09/12/21,136356,509.25,REVENUE,Rentguarantor Limited
Gosport Borough Council,,HOUSING SERVICES,H4-3,,,,GRANTS AND SUBSCRIPTIONS,,,,,02/12/21,136211,600.00,REVENUE,REDACTED
Gosport Borough Council,,HOUSING SERVICES,H4-3,,,,GRANTS AND SUBSCRIPTIONS,,,,,02/12/21,136192,775.75,REVENUE,Rentguarantor Limited
Gosport Borough Council,,HOUSING SERVICES,H4-3,,,,GRANTS AND SUBSCRIPTIONS,,,,,16/12/21,136532,909.50,REVENUE,Rentguarantor Limited
Gosport Borough Council,,HOUSING SERVICES,H4-3,,,,GRANTS AND SUBSCRIPTIONS,,,,,22/12/21,136783,"1,507.70",REVENUE,REDACTED
Gosport Borough Council,,HOUSING SERVICES,H4-3,,,,GRANTS AND SUBSCRIPTIONS,,,,,16/12/21,136599,"1,801.92",REVENUE,Aspire (Elite Property Management)
Gosport Borough Council,,PLANNING SERVICES,H4-13,,,,MISCELLANEOUS EXPENSES,,,,,16/12/21,136360,"10,116.40",REVENUE,Sparkx Limited
Gosport Borough Council,,CULTURAL AND RELATED SERVICES,H4-11,,,,MISCELLANEOUS EXPENSES,,,,,02/12/21,136119,900.00,REVENUE,Brochure Connect Limited
Gosport Borough Council,,PLANNING SERVICES,H4-13,,,,MISCELLANEOUS EXPENSES,,,,,16/12/21,136471,975.00,REVENUE,Empire Leisure (Uk) Limited
Gosport Borough Council,,PLANNING SERVICES,H4-13,,,,MISCELLANEOUS EXPENSES,,,,,09/12/21,136121,"1,270.00",REVENUE,Tech Event Services Limited
Gosport Borough Council,,PLANNING SERVICES,H4-13,,,,MISCELLANEOUS EXPENSES,,,,,09/12/21,136073,"1,750.00",REVENUE,Vision Hire Limited
Gosport Borough Council,,PLANNING SERVICES,H4-13,,,,MISCELLANEOUS EXPENSES,,,,,22/12/21,136712,"4,950.00",REVENUE,Euroforest
Gosport Borough Council,,PLANNING SERVICES,H4-13,,,,MISCELLANEOUS EXPENSES,,,,,16/12/21,136593,600.00,REVENUE,REDACTED
Gosport Borough Council,,PLANNING SERVICES,H4-13,,,,MISCELLANEOUS EXPENSES,,,,,22/12/21,136694,760.00,REVENUE,Historical Promotions & Event Management
Gosport Borough Council,,PLANNING SERVICES,H4-13,,,,MISCELLANEOUS EXPENSES,,,,,22/12/21,136695,995.00,REVENUE,Historical Promotions & Event Management
Gosport Borough Council,,PLANNING SERVICES,H4-13,,,,MISCELLANEOUS EXPENSES,,,,,16/12/21,136521,"1,569.53",REVENUE,Portsmouth City Council
Gosport Borough Council,,PLANNING SERVICES,H4-13,,,,MISCELLANEOUS EXPENSES,,,,,16/12/21,136389,"11,687.50",REVENUE,Studio: B.A.D. Ltd
Gosport Borough Council,,PLANNING SERVICES,H4-13,,,,MISCELLANEOUS EXPENSES,,,,,22/12/21,136512,"11,687.50",REVENUE,Studio: B.A.D. Ltd
Gosport Borough Council,,PLANNING SERVICES,H4-13,,,,MISCELLANEOUS EXPENSES,,,,,16/12/21,136388,"25,000.00",REVENUE,Studio: B.A.D. Ltd
Gosport Borough Council,,SERVICE UNITS ADMIN COSTS,H4-6,,,,MISCELLANEOUS EXPENSES,,,,,09/12/21,136177,"4,950.00",REVENUE,Portsmouth City Council
Gosport Borough Council,,PLANNING SERVICES,H4-13,,,,MISCELLANEOUS EXPENSES,,,,,16/12/21,136410,864.00,REVENUE,Portsmouth City Council
Gosport Borough Council,,SERVICE UNITS ADMIN COSTS,H4-6,,,,MISCELLANEOUS EXPENSES,,,,,09/12/21,135929,"3,500.00",REVENUE,East Hampshire District Council
Gosport Borough Council,,SERVICE UNITS ADMIN COSTS,H4-6,,,,MISCELLANEOUS EXPENSES,,,,,09/12/21,135930,"9,500.00",REVENUE,East Hampshire District Council
Gosport Borough Council,,SERVICE UNITS ADMIN COSTS,H4-6,,,,MISCELLANEOUS EXPENSES,,,,,09/12/21,135931,"10,500.00",REVENUE,East Hampshire District Council
Gosport Borough Council,,SERVICE UNITS ADMIN COSTS,H4-6,,,,MISCELLANEOUS EXPENSES,,,,,02/12/21,135932,"27,500.00",REVENUE,East Hampshire District Council
Gosport Borough Council,,CORPORATE AND DEMOCRATIC CORE,H4-4,,,,MISCELLANEOUS EXPENSES,,,,,16/12/21,136305,"7,970.00",REVENUE,Chevron Traffic Management Limited
Gosport Borough Council,,SERVICE UNITS ADMIN COSTS,H4-6,,,,PRIVATE CONTRACTORS,,,,,02/12/21,135949,518.20,REVENUE,Biffa Municipal Limited
Gosport Borough Council,,CULTURAL AND RELATED SERVICES,H4-11,,,,PRIVATE CONTRACTORS,,,,,02/12/21,136094,"60,000.00",REVENUE,Hampshire Cultural Trust Limited
Gosport Borough Council,,ENV AND REGULATORY SERVICES,H4-12,,,,PRIVATE CONTRACTORS,,,,,22/12/21,136718,"5,445.50",REVENUE,Enigma Security Solutions Limited
Gosport Borough Council,,HOUSING SERVICES,H4-3,,,,HOUSING BENEFITS,,,,,13/12/21,10486,"10,485.16",REVENUE,Benefit Rent Allowance
Gosport Borough Council,,HOUSING SERVICES,H4-3,,,,HOUSING BENEFITS,,,,,08/12/21,10470,"192,833.89",REVENUE,Benefit Rent Allowance
Gosport Borough Council,,HOUSING SERVICES,H4-3,,,,HOUSING BENEFITS,,,,,20/12/21,10505,"636,344.54",REVENUE,Benefit Rent Allowance
Gosport Borough Council,,HRA,H4-7,,,,REPAIRS AND MAINT OF BUILDINGS,,,,,22/12/21,136525,"308,639.00",REVENUE,Kier Group Plc
Gosport Borough Council,,HRA,H4-7,,,,REPAIRS AND MAINT OF BUILDINGS,,,,,09/12/21,136345,"549,000.00",REVENUE,Kier Group Plc
Gosport Borough Council,,ENV AND REGULATORY SERVICES,H4-12,,,,PRIVATE CONTRACTORS,,,,,09/12/21,136000,"213,039.85",REVENUE,Urbaser Limited
